Workbook

Sheet Тур 1
A1: Данные | C1: Sagan Tosu | F1: Vissel Kobe
A2: Счет | B2: Минута | C2: Игрок | D2: xG | E2: Исход | F2: Игрок | G2: xG | H2: Исход
A3: 0-0 | B3: 3 | C3: K. Tagawa | D3: 0.75 | E3: Гол
A4: 1-0 | B4: 6 | F4: M. Havenaar | G4: 0.02 | H4: Заблокирован
A5: 1-0 | B5: 11 | C5: Cho Dong-Geon | D5: 0.06 | E5: Сейв
A6: 1-0 | B6: 19 | C6: Cho Dong-Geon | D6: 0.06 | E6: Промах
A7: 1-0 | B7: 24 | F7: M. Havenaar | G7: 0.13 | H7: Промах
A8: 1-0 | B8: 24 | C8: K. Tagawa | D8: 0.02 | E8: Промах
A9: 1-0 | B9: 28 | F9: K. Watanabe | G9: 0.01 | H9: Сейв
A10: 1-0 | B10: 40 | C10: K. Tagawa | D10: 0.01 | E10: Заблокирован
A11: 1-0 | B11: 41 | F11: K. Watanabe | G11: 0.01 | H11: Промах
A12: 1-0 | B12: 48 | F12: H. Watanabe | G12: 0.53 | H12: Промах
A13: 1-0 | B13: 55 | F13: M. Havenaar | G13: 0.03 | H13: Промах
A14: 1-0 | B14: 55 | F14: L. Podolski | G14: 0.03 | H14: Заблокирован
A15: 1-0 | B15: 57 | F15: K. Watanabe | G15: 0.01 | H15: Сейв
A16: 1-0 | B16: 58 | F16: D. Nasu | G16: 0.02 | H16: Сейв
A17: 1-0 | B17: 68 | F17: Y. Matsushita | G17: 0.01 | H17: Заблокирован
A18: 1-0 | B18: 68 | F18: Y. Matsushita | G18: 0.04 | H18: Сейв
A19: 1-0 | B19: 74 | C19: K. Ikeda | D19: 0.07 | E19: Промах
A20: 1-0 | B20: 79 | F20: T. Bunmathan | G20: 0.02 | H20: Сейв
A21: 1-0 | B21: 87 | F21: M. Havenaar | G21: 0.03 | H21: Гол
A22: 1-1 | B22: 90 | F22: Y. Matsushita | G22: 0.01 | H22: Сейв
A23: 1-1 | B23: 90+3 | F23: M. Havenaar | G23: 0.08 | H23: Промах
A24: 1-1 | B24: 90+4 | F24: H. Mita | G24: 0.03 | H24: Сейв
A25: 1-1 | D25: =SUM(D3:D24) -> 0.97 | G25: =SUM(G3:G24) -> 1.01
A27: Данные | C27: Tokyo | F27: Urawa Reds
A28: Счет | B28: Минута | C28: Игрок | D28: xG | E28: Исход | F28: Игрок | G28: xG | H28: Исход
A29: 0-0 | B29: 10 | F29: Y.Kashiwagi | G29: 0.03 | H29: Сейв
A30: 0-0 | B30: 15 | C30: S.Muroya | D30: 0.01 | E30: Промах
A31: 0-0 | B31: 43 | F31: S.Koroki | G31: 0.03 | H31: Промах
A32: 0-0 | B32: 45 | F32: W.Endo | G32: 0.01 | H32: Заблокирован
A33: 0-0 | B33: 48 | C33: K.Higashi | D33: 0.13 | E33: Гол
A34: 1-0 | B34: 50 | F34: T.Makino | G34: 0.16 | H34: Гол
A35: 1-1 | B35: 53 | F35: T.Ugajin | G35: 0.02 | H35: Сейв
A36: 1-1 | B36: 56 | F36: K.Nagasawa | G36: 0.02 | H36: Заблокирован
A37: 1-1 | B37: 58 | F37: K.Nagasawa | G37: 0.01 | H37: Заблокирован
A38: 1-1 | B38: 61 | F38: S.Koroki | G38: 0.08 | H38: Сейв
A39: 1-1 | B39: 62 | F39: T.Makino | G39: 0.16 | H39: Промах
A40: 1-1 | B40: 72 | C40: K.Ota | D40: 0.02 | E40: Промах
A41: 1-1 | B41: 76 | C41: K.Nagai | D41: 0.01 | E41: Заблокирован
A42: 1-1 | B42: 82 | F42: S.Koroki | G42: 0.13 | H42: Заблокирован
A43: 1-1 | B43: 88 | F43: T.Makino | G43: 0.01 | H43: Сейв
A44: 1-1 | B44: 90+1 | C44: T.Kubo | D44: 0.05 | E44: Сейв
A45: 1-1 | D45: =SUM(D29:D44) -> 0.22 | G45: =SUM(G29:G44) -> 0.66
A47: Данные | C47: Sanfrecce Hirosima | F47: Consadole Sapporo
A48: Счет | B48: Минута | C48: Игрок | D48: xG | E48: Исход | F48: Игрок | G48: xG | H48: Исход
A49: 0-0 | B49: 2 | F49: J.Bothroyd | G49: 0.03 | H49: Промах
A50: 0-0 | B50: 13 | C50: S.Sasaki | D50: 0.05 | E50: Промах
A51: 0-0 | B51: 15 | C51: H.Kawabe | D51: 0.02 | E51: Заблокирован
A52: 0-0 | B52: 16 | C52: K.Chiba | D52: 0.06 | E52: Промах
A53: 0-0 | B53: 20 | C53: Y.Kashiwa | D53: 0.01 | E53: Промах
A54: 0-0 | B54: 21 | C54: Patric | D54: 0.04 | E54: Промах
A55: 0-0 | B55: 22 | C55: Y.Kashiwa | D55: 0.08 | E55: Заблокирован
A56: 0-0 | B56: 23 | C56: H.Mizumoto | D56: 0.13 | E56: Промах
A57: 0-0 | B57: 26 | C57: S.Sasaki | D57: 0.19 | E57: Промах
A58: 0-0 | B58: 28 | F58: D.Suga | G58: 0.01 | H58: Промах
A59: 0-0 | B59: 28 | C59: T.Dangda | D59: 0.26 | E59: Гол
A60: 1-0 | B60: 38 | C60: H.Kawabe | D60: 0.04 | E60: Промах
A61: 1-0 | B61: 40 | F61: K.Miyoshi | G61: 0.06 | H61: Заблокирован
A62: 1-0 | B62: 40 | F62: H.Miyazawa | G62: 0.08 | H62: Сейв
A63: 1-0 | B63: 46 | F63: K.Miyoshi | G63: 0.07 | H63: Промах
A64: 1-0 | B64: 54 | F64: D.Suga | G64: 0.01 | H64: Промах
A65: 1-0 | B65: 55 | F65: K.Miyoshi | G65: 0.02 | H65: Промах
A66: 1-0 | B66: 58 | F66: C.Songkrasin | G66: 0.14 | H66: Сейв
A67: 1-0 | B67: 62 | F67: C.Songkrasin | G67: 0.01 | H67: Заблокирован
A68: 1-0 | B68: 62 | F68: R.Shindo | G68: 0.04 | H68: Промах
A69: 1-0 | B69: 61 | C69: H.Mizumoto | D69: 0.05 | E69: Сейв
A70: 1-0 | B70: 67 | C70: Patric | D70: 0.03 | E70: Промах
A71: 1-0 | B71: 75 | C71: Y.Kashiwa | D71: 0.04 | E71: Промах
A72: 1-0 | B72: 78 | F72: Y.Komai | G72: 0.01 | H72: Промах
A73: 1-0 | B73: 82 | F73: S.Ono | G73: 0.02 | H73: Промах
A74: 1-0 | B74: 90+1 | F74: R.Shindo | G74: 0.02 | H74: Сейв
A75: 1-0 | B75: 90+5 | F75: A.Fukumori | G75: 0.01 | H75: Промах
A76: 1-0 | B76: 90+7 | F76: Y.Komai | G76: 0.02 | H76: Заблокирован
A77: 1-0 | D77: =SUM(D49:D76) -> 1 | G77: =SUM(G49:G76) -> 0.55
A79: Данные | C79: Gamba Osaka | F79: Nagoya Grampus Eight
A80: Счет | B80: Минута | C80: Игрок | D80: xG | E80: Исход | F80: Игрок | G80: xG | H80: Исход
A81: 0-0 | B81: 7 | C81: Hwang Eui-Jo | D81: 0.02 | E81: Сейв
A82: 0-0 | B82: 10 | F82: Jo | G82: 0.09 | H82: Сейв
A83: 0-0 | B83: 12 | C83: Hwang Eui-Jo | D83: 0.02 | E83: Сейв
A84: 0-0 | B84: 13 | C84: Y.Endo | D84: 0.02 | E84: Промах
A85: 0-0 | B85: 13 | C85: Y.Endo | D85: 0.06 | E85: Гол
A86: 1-0 | B86: 16 | F86: R.Aoki | G86: 0.02 | H86: Сейв
A87: 1-0 | B87: 26 | F87: G.Xavier | G87: 0.23 | H87: Гол
A88: 1-1 | B88: 27 | F88: Y.Akiyama | G88: 0.03 | H88: Промах
A89: 1-1 | B89: 29 | C89: Y.Endo | D89: 0.08 | E89: Промах
A90: 1-1 | B90: 31 | C90: Hwang Eui-Jo | D90: 0.01 | E90: Промах
A91: 1-1 | B91: 44 | C91: Hwang Eui-Jo | D91: 0.04 | E91: Сейв
A92: 1-1 | B92: 48 | C92: S.Kurata | D92: 0.01 | E92: Промах
A93: 1-1 | B93: 51 | F93: Willian Rocha | G93: 0.72 | H93: Гол
A94: 1-2 | B94: 56 | F94: G.Xavier | G94: 0.01 | H94: Промах
A95: 1-2 | B95: 59 | F95: Jo | G95: 0.1 | H95: Промах
A96: 1-2 | B96: 65 | F96: R.Izumi | G96: 0.06 | H96: Заблокирован
A97: 1-2 | B97: 71 | C97: Y.Endo | D97: 0.06 | E97: Заблокирован
A98: 1-2 | B98: 72 | C98: Fujiharu | D98: 0.03 | E98: Сейв
A99: 1-2 | B99: 76 | F99: Willian Rocha | G99: 0.12 | H99: Сейв
A100: 1-2 | B100: 78 | C100: K.Nakamura | D100: 0.03 | E100: Промах
A101: 1-2 | B101: 79 | C101: S.Nagasawa | D101: 0.25 | E101: Гол
A102: 2-2 | B102: 84 | F102: Jo | G102: 0.59 | H102: Гол
A103: 2-3 | B103: 90+1 | C103: S.Yajima | D103: 0.09 | E103: Промах
A104: 2-3 | B104: 90+2 | F104: Jo | G104: 0.04 | H104: Заблокирован
A105: 2-3 | D105: =SUM(D81:D104) -> 0.72 | G105: =SUM(G81:G104) -> 2.01
A107: Данные | C107: Shonan Bellmare | F107: V-Varen Nagasaki
A108: Счет | B108: Минута | C108: Игрок | D108: xG | E108: Исход | F108: Игрок | G108: xG | H108: Исход
A109: 0-0 | B109: 8 | C109: Lee Jung-Hyub | D109: 0.11 | E109: Гол
A110: 1-0 | B110: 9 | F110: Y.Tokunaga | G110: 0.03 | H110: Промах
A111: 1-0 | B111: 13 | F111: Juanma | G111: 0.09 | H111: Промах
A112: 1-0 | B112: 16 | F112: R.Takasugi | G112: 0.27 | H112: Сейв
A113: 1-0 | B113: 16 | F113: D.Tagami | G113: 0.83 | H113: Гол
A114: 1-1 | B114: 17 | C114: S.Kikuchi | D114: 0.03 | E114: Сейв
A115: 1-1 | B115: 28 | C115: T.Okamoto | D115: 0.01 | E115: Сейв
A116: 1-1 | B116: 31 | F116: R.Lio | G116: 0.02 | H116: Промах
A117: 1-1 | B117: 33 | F117: Juanma | G117: 0.06 | H117: Промах
A118: 1-1 | B118: 35 | C118: K.Ono | D118: 0.1 | E118: Промах
A119: 1-1 | B119: 46 | F119: R.Lio | G119: 0.63 | H119: Промах
A120: 1-1 | B120: 52 | F120: Juanma | G120: 0.03 | H120: Заблокирован
A121: 1-1 | B121: 63 | F121: H.Onaga | G121: 0.09 | H121: Промах
A122: 1-1 | B122: 68 | C122: Lee Jung-Hyub | D122: 0.02 | E122: Промах
A123: 1-1 | B123: 77 | F123: T.Sawada | G123: 0.03 | H123: Сейв
A124: 1-1 | B124: 80 | C124: H.Akino | D124: 0.03 | E124: Заблокирован
A125: 1-1 | B125: 80 | C125: T.Ishikawa | D125: 0.99 | E125: Гол
A126: 2-1 | B126: 89 | F126: Juanma | G126: 0.05 | H126: Промах
A127: 2-1 | B127: 92 | F127: Juanma | G127: 0.04 | H127: Сейв
A128: 2-1 | B128: 93 | F128: M.Suzuki | G128: 0.02 | H128: Сейв
A129: 2-1 | D129: =SUM(D109:D128) -> 1.29 | G129: =SUM(G109:G128) -> 2.19
A131: Данные | C131: Shimizu S-Pulse | F131: Kashima Antlers
A132: Счет | B132: Минута | C132: Игрок | D132: xG | E132: Исход | F132: Игрок | G132: xG | H132: Исход
A133: 0-0 | B133: 4 | F133: H.Abe | G133: 0.02 | H133: Промах
A134: 0-0 | B134: 11 | C134: H.Ishige | D134: 0.05 | E134: Заблокирован
A135: 0-0 | B135: 11 | C135: Crislan | D135: 0.02 | E135: Промах
A136: 0-0 | B136: 11 | C136: K.Matsubara | D136: 0.72 | E136: Промах
A137: 0-0 | B137: 13 | C137: K.Kitagawa | D137: 0.03 | E137: Сейв
A138: 0-0 | B138: 16 | C138: K.Kitagawa | D138: 0.03 | E138: Промах
A139: 0-0 | B139: 28 | F139: G.Shoji | G139: 0.01 | H139: Промах
A140: 0-0 | B140: 33 | C140: Crislan | D140: 0.03 | E140: Промах
A141: 0-0 | B141: 41 | C141: Crislan | D141: 0.75 | E141: Сейв
A142: 0-0 | B142: 47 | F142: Y.Endo | G142: 0.03 | H142: Сейв
A143: 0-0 | B143: 52 | F143: M.Kanazaki | G143: 0.18 | H143: Сейв
A144: 0-0 | B144: 57 | F144: Y.Endo | G144: 0.01 | H144: Заблокирован
A145: 0-0 | B145: 65 | C145: R.Takeuchi | D145: 0.01 | E145: Заблокирован
A146: 0-0 | B146: 67 | F146: Y.Suzuki | G146: 0.64 | H146: Сейв
A147: 0-0 | B147: 75 | C147: M.Duke | D147: 0.01 | E147: Заблокирован
A148: 0-0 | B148: 77 | F148: Koki Anzai | G148: 0.03 | H148: Заблокирован
A149: 0-0 | B149: 81 | C149: M.Duke | D149: 0.1 | E149: Сейв
A150: 0-0 | B150: 83 | F150: A.Uchida | G150: 0.11 | H150: Заблокирован
A151: 0-0 | B151: 83 | F151: S.Doi | G151: 0.07 | H151: Заблокирован
A152: 0-0 | B152: 87 | F152: Y.Suzuki | G152: 0.19 | H152: Сейв
A153: 0-0 | D153: =SUM(D133:D152) -> 1.75 | G153: =SUM(G133:G152) -> 1.29
A155: Данные | C155: Jubilo Iwata | F155: Kawasaki Frontale
A156: Счет | B156: Минута | C156: Игрок | D156: xG | E156: Исход | F156: Игрок | G156: xG | H156: Исход
A157: 0-0 | B157: 17 | C157: S.Takasashi | D157: 0.07 | E157: Промах
A158: 0-0 | B158: 22 | C158: Adailton | D158: 0.22 | E158: Сейв
A159: 0-0 | B159: 24 | F159: K.Chinen | G159: 0.04 | H159: Заблокирован
A160: 0-0 | B160: 24 | F160: K.Nakamura | G160: 0.2 | H160: Гол
A161: 0-1 | B161: 32 | C161: Adailton | D161: 0.01 | E161: Заблокирован
A162: 0-1 | B162: 37 | F162: A.Lenaga | G162: 0.01 | H162: Сейв
A163: 0-1 | B163: 42 | F163: K.Nakamura | G163: 0.05 | H163: Сейв
A164: 0-1 | B164: 43 | F164: S.Taniguchi | G164: 0.22 | H164: Гол
A165: 0-2 | B165: 45 | F165: Eduardo | G165: 0.13 | H165: Гол
A166: 0-3 | B166: 60 | C166: T.Taguchi | D166: 0.02 | E166: Сейв
A167: 0-3 | B167: 63 | C167: M.Matsumoto | D167: 0.01 | E167: Промах
A168: 0-3 | B168: 67 | F168: Elsinho | G168: 0.14 | H168: Промах
A169: 0-3 | B169: 69 | C169: Adailton | D169: 0.03 | E169: Заблокирован
A170: 0-3 | B170: 73 | C170: H.Yamada | D170: 0.03 | E170: Промах
A171: 0-3 | B171: 86 | F171: Y.Kobayashi | G171: 0.7 | H171: Промах
A172: 0-3 | B172: 88 | F172: Y.Kobayashi | G172: 0.15 | H172: Промах
A173: 0-3 | B173: 89 | C173: H.Yamada | D173: 0.03 | E173: Промах
A174: 0-3 | B174: 90+2 | C174: M.Matsumoto | D174: 0.02 | E174: Промах
A175: 0-3 | B175: 90+4 | F175: Y.Okubo | G175: 0.04 | H175: Сейв
A176: 0-3 | D176: =SUM(D157:D175) -> 0.44 | G176: =SUM(G157:G175) -> 1.68
A178: Данные | C178: Vegalta Sendai | F178: Kashiwa Reysol
A179: Счет | B179: Минута | C179: Игрок | D179: xG | E179: Исход | F179: Игрок | G179: xG | H179: Исход
A180: 0-0 | B180: 8 | F180: Cristiano | G180: 0.1 | H180: Заблокирован
A181: 0-0 | B181: 10 | F181: Y.Nakayama | G181: 0.02 | H181: Промах
A182: 0-0 | B182: 25 | C182: T.Abe | D182: 0.03 | E182: Сейв
A183: 0-0 | B183: 30 | F183: Cristiano | G183: 0.05 | H183: Промах
A184: 0-0 | B184: 32 | F184: Cristiano | G184: 0.02 | H184: Промах
A185: 0-0 | B185: 40 | F185: J.Ito | G185: 0.07 | H185: Сейв
A186: 0-0 | B186: 40 | F186: A.Esaka | G186: 0.01 | H186: Заблокирован
A187: 0-0 | B187: 40 | F187: J.Ito | G187: 0.04 | H187: Заблокирован
A188: 0-0 | B188: 40 | C188: K.Nagato | D188: 0.03 | E188: Заблокирован
A189: 0-0 | B189: 41 | C189: S.Kobayashi | D189: 0.01 | E189: Промах
A190: 0-0 | B190: 53 | C190: K.Itakura | D190: 0.2 | E190: Гол
A191: 1-0 | B191: 58 | C191: K.Itakura | D191: 0.01 | E191: Сейв
A192: 1-0 | B192: 59 | F192: R.Lopes | G192: 0.02 | H192: Промах
A193: 1-0 | B193: 60 | C193: H.Okuno | D193: 0.03 | E193: Промах
A194: 1-0 | B194: 64 | F194: Y.Nakayama | G194: 0.02 | H194: Промах
A195: 1-0 | B195: 68 | F195: J.Ito | G195: 0.01 | H195: Заблокирован
A196: 1-0 | B196: 77 | C196: G.Notsuda | D196: 0.02 | E196: Промах
A197: 1-0 | B197: 79 | C197: N.Ishihara | D197: 0.01 | E197: Заблокирован
A198: 1-0 | B198: 82 | F198: A.Esaka | G198: 0.11 | H198: Промах
A199: 1-0 | B199: 84 | F199: Cristiano | G199: 0.1 | H199: Промах
A200: 1-0 | B200: 86 | F200: Cristiano | G200: 0.17 | H200: Заблокирован
A201: 1-0 | B201: 89 | F201: Cristiano | G201: 0.02 | H201: Заблокирован
A202: 1-0 | D202: =SUM(D180:D201) -> 0.34 | G202: =SUM(G180:G201) -> 0.76
A204: Данные | C204: Cerezo Osaka | F204: Yokohama F.Marinos
A205: Счет | B205: Минута | C205: Игрок | D205: xG | E205: Исход | F205: Игрок | G205: xG | H205: Исход
A206: 0-0 | B206: 2 | F206: R.Yamanaka | G206: 0.01 | H206: Промах
A207: 0-0 | B207: 3 | F207: K.Endo | G207: 0.02 | H207: Заблокирован
A208: 0-0 | B208: 4 | F208: Il-Lok Yun | G208: 0.04 | H208: Заблокирован
... 29 more rows

Sheet Тур 2
A1: Данные | C1: Cerezo Osaka | F1: Consadole Sapporo
A2: Счет | B2: Минута | C2: Игрок | D2: xG | E2: Исход | F2: Игрок | G2: xG | H2: Исход
A3: 0-0 | B3: 1 | C3: K.Mizunuma | D3: 0.03 | E3: Сейв
A4: 0-0 | B4: 3 | C4: Y.Kakitani | D4: 0.03 | E4: Промах
A5: 0-0 | B5: 7 | F5: K.Miyoshi | G5: 0.02 | H5: Промах
A6: 0-0 | B6: 7 | C6: Y.Kimoto | D6: 0.16 | E6: Промах
A7: 0-0 | B7: 10 | C7: Y.Kakitani | D7: 0.01 | E7: Заблокирован
A8: 0-0 | B8: 16 | C8: T.Takagi | D8: 0.07 | E8: Сейв
A9: 0-0 | B9: 18 | C9: K.Sugimoto | D9: 0.13 | E9: Промах
A10: 0-0 | B10: 23 | C10: K.Sugimoto | D10: 0.03 | E10: Сейв
A11: 0-0 | B11: 25 | C11: Y.Kakitani | D11: 0.04 | E11: Сейв
A12: 0-0 | B12: 27 | C12: K.Sugimoto | D12: 0.04 | E12: Гол
A13: 1-0 | B13: 29 | C13: Souza | D13: 0.02 | E13: Промах
A14: 1-0 | B14: 32 | F14: C.Songkrasin | G14: 0.04 | H14: Промах
A15: 1-0 | B15: 34 | F15: J.Bothroyd | G15: 0.18 | H15: Промах
A16: 1-0 | B16: 40 | F16: K.Miyoshi | G16: 0.08 | H16: Промах
A17: 1-0 | B17: 43 | C17: T.Takagi | D17: 0.1 | E17: Гол
A18: 2-0 | B18: 50 | F18: S.Hyodo | G18: 0.01 | H18: Сейв
A19: 2-0 | B19: 62 | F19: C.Songkrasin | G19: 0.3 | H19: Гол
A20: 2-1 | B20: 65 | F20: D.Suga | G20: 0.08 | H20: Сейв
A21: 2-1 | B21: 69 | F21: K.Fukai | G21: 0.16 | H21: Гол
A22: 2-2 | B22: 72 | C22: Y.Kakitani | D22: 0.28 | E22: Гол
A23: 3-2 | B23: 74 | F23: D.Suga | G23: 0.08 | H23: Промах
A24: 3-2 | B24: 78 | F24: A.Fukumori | G24: 0.01 | H24: Сейв
A25: 3-2 | B25: 79 | F25: R.Shindo | G25: 0.09 | H25: Гол
A26: 3-3 | B26: 83 | F26: Kim Min-Tae | G26: 0.06 | H26: Промах
A27: 3-3 | B27: 84 | F27: C.Songkrasin | G27: 0.17 | H27: Промах
A28: 3-3 | B28: 88 | C28: K.Sugimoto | D28: 0.07 | E28: Сейв
A29: 3-3 | B29: 88 | C29: K.Mizunuma | D29: 0.09 | E29: Сейв
A30: 3-3 | B30: 89 | C30: Dong-Hyon Yang | D30: 0.03 | E30: Заблокирован
A31: 3-3 | B31: 90+3 | F31: A.Fukumori | G31: 0.02 | H31: Промах
A32: 3-3 | B32: 90+4 | F32: J.Bothroyd | G32: 0.02 | H32: Заблокирован
A33: 3-3 | D33: =SUM(D3:D32) -> 1.13 | G33: =SUM(G3:G32) -> 1.32
A35: Данные | C35: Kawasaki Frontale | F35: Shonan Bellmare
A36: Счет | B36: Минута | C36: Игрок | D36: xG | E36: Исход | F36: Игрок | G36: xG | H36: Исход
A37: 0-0 | B37: 1 | C37: Y.Kobayashi | D37: 0.01 | E37: Заблокирован
A38: 0-0 | B38: 5 | C38: K.Chinen | D38: 0.02 | E38: Сейв
A39: 0-0 | B39: 6 | F39: S.Kikuchi | G39: 0.04 | H39: Промах
A40: 0-0 | B40: 8 | F40: K.Ono | G40: 0.01 | H40: Заблокирован
A41: 0-0 | B41: 12 | C41: K.Chinen | D41: 0.07 | E41: Заблокирован
A42: 0-0 | B42: 12 | C42: K.Chinen | D42: 0.04 | E42: Заблокирован
A43: 0-0 | B43: 13 | C43: A.Ienaga | D43: 0.02 | E43: Заблокирован
A44: 0-0 | B44: 19 | C44: Eduardo Neto | D44: 0.01 | E44: Сейв
A45: 0-0 | B45: 29 | F45: S.Kikuchi | G45: 0.04 | H45: Промах
A46: 0-0 | B46: 33 | C46: K.Chinen | D46: 0.03 | E46: Сейв
A47: 0-0 | B47: 37 | C47: K.Chinen | D47: 0.01 | E47: Заблокирован
A48: 0-0 | B48: 40 | F48: T.Okamoto | G48: 0.02 | H48: Заблокирован
A49: 0-0 | B49: 45 | F49: Andre Bahia | G49: 0.05 | H49: Заблокирован
A50: 0-0 | B50: 50 | F50: D.Sugioka | G50: 0.04 | H50: Сейв
A51: 0-0 | B51: 54 | C51: K.Nakamura | D51: 0.09 | E51: Промах
A52: 0-0 | B52: 56 | C52: Y.Kobayashi | D52: 0.31 | E52: Гол
A53: 1-0 | B53: 61 | F53: M.Mikic | G53: 0.02 | H53: Заблокирован
A54: 1-0 | B54: 63 | C54: Elsinho | D54: 0.01 | E54: Заблокирован
A55: 1-0 | B55: 64 | C55: T.Nara | D55: 0.07 | E55: Промах
A56: 1-0 | B56: 65 | F56: M.Yamane | G56: 0.01 | H56: Сейв
A57: 1-0 | B57: 66 | F57: T.Matsuda | G57: 0.37 | H57: Гол
A58: 1-1 | B58: 69 | C58: Eduardo Neto | D58: 0.02 | E58: Заблокирован
A59: 1-1 | B59: 71 | C59: Y.Kobayashi | D59: 0.05 | E59: Заблокирован
A60: 1-1 | B60: 71 | C60: Eduardo Neto | D60: 0.03 | E60: Заблокирован
A61: 1-1 | B61: 72 | C61: Y.Okubo | D61: 0.02 | E61: Промах
A62: 1-1 | B62: 77 | C62: T.Nara | D62: 0.05 | E62: Сейв
A63: 1-1 | B63: 78 | C63: Y.Okubo | D63: 0.2 | E63: Сейв
A64: 1-1 | B64: 84 | F64: G.Omotehara | G64: 0.02 | H64: Промах
A65: 1-1 | B65: 85 | C65: A.Ienaga | D65: 0.05 | E65: Промах
A66: 1-1 | B66: 87 | C66: Y.Kobayashi | D66: 0.09 | E66: Промах
A67: 1-1 | B67: 90 | F67: R.Noda | G67: 0.05 | H67: Сейв
A68: 1-1 | B68: 90+1 | F68: M.Mikic | G68: 0.02 | H68: Заблокирован
A69: 1-1 | D69: =SUM(D37:D68) -> 1.2 | G69: =SUM(G37:G68) -> 0.69
A71: Данные | C71: Kashiwa Reysol | F71: Yokohama F.Marinos
A72: Счет | B72: Минута | C72: Игрок | D72: xG | E72: Исход | F72: Игрок | G72: xG | H72: Исход
A73: 0-0 | B73: 0-0 | F73: Hugo Vieira | G73: 0.05 | H73: Промах
A74: 0-0 | B74: 8 | C74: A. Esaka | D74: 0.04 | E74: Промах
A75: 0-0 | B75: 8 | C75: H. Hosogai | D75: 0.02 | E75: Промах
A76: 0-0 | B76: 9 | F76: Il-Lok Yun | G76: 0.05 | H76: Заблокирован
A77: 0-0 | B77: 11 | F77: R. Yamanaka | G77: 0.01 | H77: Промах
A78: 0-0 | B78: 17 | F78: J. Amano | G78: 0.01 | H78: Промах
A79: 0-0 | B79: 27 | F79: R. Yamanaka | G79: 0.01 | H79: Промах
A80: 0-0 | B80: 34 | C80: Cristiano | D80: 0.06 | E80: Промах
A81: 0-0 | B81: 38 | F81: J. Amano | G81: 0.02 | H81: Промах
A82: 0-0 | B82: 39 | C82: Kim Bo-Kyung | D82: 0.04 | E82: Сейв
A83: 0-0 | B83: 49 | C83: K. Koizumi | D83: 0.14 | E83: Гол
A84: 1-0 | B84: 52 | C84: A. Esaka | D84: 0.07 | E84: Промах
A85: 1-0 | B85: 56 | C85: Cristiano | D85: 0.04 | E85: Промах
A86: 1-0 | B86: 57 | C86: H. Hosogai | D86: 0.02 | E86: Промах
A87: 1-0 | B87: 60 | F87: R. Yamanaka | G87: 0.01 | H87: Промах
A88: 1-0 | B88: 66 | C88: J. Ito | D88: 0.02 | E88: Промах
A89: 1-0 | B89: 69 | F89: J. Amano | G89: 0.01 | H89: Промах
A90: 1-0 | B90: 71 | F90: K. Matsubara | G90: 0.01 | H90: Заблокирован
A91: 1-0 | B91: 75 | C91: H. Otani | D91: 0.15 | E91: Гол
A92: 2-0 | B92: 79 | F92: Il-Lok Yun | G92: 0.05 | H92: Сейв
A93: 2-0 | B93: 79 | F93: Hugo Vieira | G93: 0.07 | H93: Заблокирован
A94: 2-0 | B94: 80 | C94: J. Ito | D94: 0.03 | E94: Промах
A95: 2-0 | B95: 82 | C95: Kim Bo-Kyung | D95: 0.1 | E95: Заблокирован
A96: 2-0 | B96: 88 | F96: D. Babunski | G96: 0.02 | H96: Сейв
A97: 2-0 | B97: 90 | F97: D. Babunski | G97: 0.01 | H97: Заблокирован
A98: 2-0 | B98: 90+3 | C98: J. Ito | D98: 0.02 | E98: Промах
A99: 2-0 | D99: =SUM(D73:D98) -> 0.75 | G99: =SUM(G73:G98) -> 0.33
A101: Данные | C101: Nagoya Grampus Eight | F101: Jubilo Iwata
A102: Счет | B102: Минута | C102: Игрок | D102: xG | E102: Исход | F102: Игрок | G102: xG | H102: Исход
A103: 0-0 | B103: 5 | C103: Jo | D103: 0.21 | E103: Сейв
A104: 0-0 | B104: 6 | F104: H.Yamada | G104: 0.08 | H104: Сейв
A105: 0-0 | B105: 7 | F105: Adailton | G105: 0.02 | H105: Промах
A106: 0-0 | B106: 8 | C106: Gabriel Xavier | D106: 0.2 | E106: Гол
A107: 1-0 | B107: 16 | C107: Gabriel Xavier | D107: 0.04 | E107: Промах
A108: 1-0 | B108: 30 | F108: H.Yamada | G108: 0.05 | H108: Заблокирован
A109: 1-0 | B109: 30 | C109: R.Aoki | D109: 0.03 | E109: Сейв
A110: 1-0 | B110: 34 | C110: Y.Sugawara | D110: 0.03 | E110: Заблокирован
A111: 1-0 | B111: 34 | C111: Willian Rocha | D111: 0.05 | E111: Сейв
A112: 1-0 | B112: 38 | C112: R.Aoki | D112: 0.04 | E112: Промах
A113: 1-0 | B113: 41 | F113: G.Santos | G113: 0.01 | H113: Промах
A114: 1-0 | B114: 44 | C114: Jo | D114: 0.34 | E114: Сейв
A115: 1-0 | B115: 51 | F115: T.Taguchi | G115: 0.01 | H115: Промах
A116: 1-0 | B116: 59 | F116: K.Kawamata | G116: 0.22 | H116: Сейв
A117: 1-0 | B117: 59 | F117: F.Musayev | G117: 0.08 | H117: Сейв
A118: 1-0 | B118: 65 | F118: T.Taguchi | G118: 0.01
A119: 1-0 | B119: 66 | C119: Gabriel Xavier | D119: 0.05 | E119: Промах
A120: 1-0 | B120: 71 | C120: Gabriel Xavier | D120: 0.12 | E120: Сейв
A121: 1-0 | B121: 74 | F121: K.Kawamata | G121: 0.24 | H121: Промах
A122: 1-0 | B122: 75 | F122: Adailton | G122: 0.07 | H122: Промах
A123: 1-0 | B123: 76 | C123: Gabriel Xavier | D123: 0.06 | E123: Сейв
A124: 1-0 | B124: 77 | C124: Willian Rocha | D124: 0.3 | E124: Промах
A125: 1-0 | B125: 79 | F125: R.Uehara | G125: 0.03 | H125: Промах
A126: 1-0 | B126: 87 | C126: R.Aoki | D126: 0.04 | E126: Промах
A127: 1-0 | D127: =SUM(D103:D126) -> 1.51 | G127: =SUM(G103:G126) -> 0.82
A129: Данные | C129: FC Tokyo | F129: Vegalta Sendai
A130: Счет | B130: Минута | C130: Игрок | D130: xG | E130: Исход | F130: Игрок | G130: xG | H130: Исход
A131: 0-0 | B131: 4 | C131: K. Omori | D131: 0.03 | E131: Заблокирован
A132: 0-0 | B132: 4 | C132: K.Higashi | D132: 0.02 | E132: Сейв
A133: 0-0 | B133: 15 | C133: K.Omori | D133: 0.09 | E133: Сейв
A134: 0-0 | B134: 21 | C134: Y.Takahagi | D134: 0.02 | E134: Сейв
A135: 0-0 | B135: 30 | F135: T.Abe | G135: 0.01 | H135: Сейв
A136: 0-0 | B136: 39 | C136: K.Omori | D136: 0.04 | E136: Промах
A137: 0-0 | B137: 41 | C137: K.Omori | D137: 0.06 | E137: Заблокирован
A138: 0-0 | B138: 45+2 | F138: Y.Hiraoka | G138: 0.07 | H138: Сейв
A139: 0-0 | B139: 57 | F139: N.Ishihara | G139: 0.06 | H139: Гол
A140: 0-1 | B140: 61 | C140: Y.Takahagi | D140: 0.07 | E140: Сейв
A141: 0-1 | B141: 64 | C141: S.Muroya | D141: 0.01 | E141: Заблокирован
A142: 0-1 | B142: 67 | F142: T.Abe | G142: 0.08 | H142: Заблокирован
A143: 0-1 | B143: 67 | F143: S.Kobayashi | G143: 0.05 | H143: Промах
A144: 0-1 | B144: 74 | C144: K.Omori | D144: 0.11 | E144: Промах
A145: 0-1 | B145: 75 | C145: C.Togashi | D145: 0.18 | E145: Заблокирован
A146: 0-1 | B146: 76 | C146: C.Togashi | D146: 0.09 | E146: Заблокирован
A147: 0-1 | B147: 78 | C147: C.Togashi | D147: 0.04 | E147: Заблокирован
A148: 0-1 | B148: 79 | C148: M.Morishige | D148: 0.01 | E148: Промах
A149: 0-1 | B149: 85 | C149: Jang Hyun-Soo | D149: 0.02 | E149: Промах
A150: 0-1 | B150: 88 | F150: G.Notsuda | G150: 0.01 | H150: Промах
A151: 0-1 | D151: =SUM(D131:D150) -> 0.79 | G151: =SUM(G131:G150) -> 0.28
A153: Данные | C153: V-Varen Nagasaki | F153: Sagan Tosu
A154: Счет | B154: Минута | C154: Игрок | D154: xG | E154: Исход | F154: Игрок | G154: xG | H154: Исход
A155: 0-0 | B155: 2 | C155: T.Sawada | D155: 0.04 | E155: Гол
A156: 1-0 | B156: 8 | C156: H.Onaga | D156: 0.05 | E156: Сейв
A157: 1-0 | B157: 9 | C157: D.Tagami | D157: 0.03 | E157: Промах
A158: 1-0 | B158: 21 | C158: T.Usui | D158: 0.02 | E158: Заблокирован
A159: 1-0 | B159: 24 | F159: K.Tagawa | G159: 0.02 | H159: Заблокирован
A160: 1-0 | B160: 30 | C160: M.Suzuki | D160: 0.08 | E160: Сейв
A161: 1-0 | B161: 30 | C161: T.Sawada | D161: 0.18 | E161: Заблокирован
A162: 1-0 | B162: 35 | C162: M.Suzuki | D162: 0.27 | E162: Гол
A163: 2-0 | B163: 40 | F163: R.Harakawa | G163: 0.02 | H163: Промах
A164: 2-0 | B164: 53 | F164: K.Tagawa | G164: 0.03 | H164: Промах
A165: 2-0 | B165: 56 | F165: Y.Ono | G165: 0.22 | H165: Промах
A166: 2-0 | B166: 59 | F166: Y.Ono | G166: 0.04 | H166: Сейв
A167: 2-0 | B167: 60 | F167: H.Takahashi | G167: 0.04 | H167: Гол
A168: 2-1 | B168: 61 | F168: A.Fukuta | G168: 0.05 | H168: Заблокирован
A169: 2-1 | B169: 61 | F169: K.Ikeda | G169: 0.14 | H169: Промах
A170: 2-1 | B170: 65 | F170: Y.Ono | G170: 0.1 | H170: Промах
A171: 2-1 | B171: 68 | F171: Y.Ono | G171: 0.03 | H171: Промах
A172: 2-1 | B172: 76 | C172: T.Usui | D172: 0.03 | E172: Промах
A173: 2-1 | B173: 81 | F173: H.Kawano | G173: 0.05 | H173: Заблокирован
A174: 2-1 | B174: 81 | F174: R.Harakawa | G174: 0.02 | H174: Заблокирован
A175: 2-1 | B175: 81 | F175: K.Ikeda | G175: 0.24 | H175: Сейв
A176: 2-1 | B176: 82 | C176: H.Onaga | D176: 0.17 | E176: Промах
A177: 2-1 | B177: 83 | F177: Seung-Hyeon Jung | G177: 0.81 | H177: Гол
A178: 2-2 | B178: 88 | F178: H.Takahashi | G178: 0.04 | H178: Промах
A179: 2-2 | B179: 90+1 | C179: Y.Tokunaga | D179: 0.01 | E179: Промах
A180: 2-2 | B180: 90+4 | F180: K.Ikeda | G180: 0.04 | H180: Сейв
A181: 2-2 | D181: =SUM(D155:D180) -> 0.88 | G181: =SUM(G155:G180) -> 1.89
A183: Данные | C183: Vissel Kobe | F183: Shimizu S-Pulse
A184: Счет | B184: Минута | C184: Игрок | D184: xG | E184: Исход | F184: Игрок | G184: xG | H184: Исход
A185: 0-0 | B185: 3 | C185: Y.Matsushita | D185: 0.01 | E185: Промах
A186: 0-0 | B186: 7 | C186: L.Podolski | D186: 0.06 | E186: Промах
A187: 0-0 | B187: 12 | F187: K.Kitagawa | G187: 0.04 | H187: Заблокирован
A188: 0-0 | B188: 13 | F188: Crislan | G188: 0.09 | H188: Гол
A189: 0-1 | B189: 18 | C189: L.Podolski | D189: 0.02 | E189: Сейв
A190: 0-1 | B190: 19 | C190: H.Watanabe | D190: 0.1 | E190: Сейв
A191: 0-1 | B191: 22 | C191: Y.Matsushita | D191: 0.02 | E191: Промах
A192: 0-1 | B192: 23 | C192: H.Mita | D192: 0.02 | E192: Промах
A193: 0-1 | B193: 26 | F193: K.Kitagawa | G193: 0.98 | H193: Гол
A194: 0-2 | B194: 32 | C194: J.Tanaka | D194: 0.49 | E194: Гол
A195: 1-2 | B195: 35 | C195: Woo-Young Jung | D195: 0.01 | E195: Промах
A196: 1-2 | B196: 36 | C196: L.Podolski | D196: 0.07 | E196: Заблокирован
A197: 1-2 | B197: 36 | C197: L.Podolski | D197: 0.06 | E197: Промах
A198: 1-2 | B198: 38 | C198: L.Podolski | D198: 0.04 | E198: Промах
A199: 1-2 | B199: 45+3 | C199: H.Mita | D199: 0.05 | E199: Промах
A200: 1-2 | B200: 47 | C200: H.Mita | D200: 0.01 | E200: Промах
A201: 1-2 | B201: 52 | C201: M.Havenaar | D201: 0.27 | E201: Сейв
A202: 1-2 | B202: 55 | C202: L.Podolski | D202: 0.01 | E202: Промах
A203: 1-2 | B203: 58 | F203: H.Ishige | G203: 0.08 | H203: Промах
A204: 1-2 | B204: 58 | F204: K.Kitagawa | G204: 0.12 | H204: Заблокирован
A205: 1-2 | B205: 69 | C205: Woo-Young Jung | D205: 0.03 | E205: Гол
A206: 2-2 | B206: 72 | F206: Y.Tatsuta | G206: 0.11 | H206: Гол
... 62 more rows
